Cogmind - Beta 11 *** ADVENTURER MODE // 2022.09.15 @ 20:07:24 Player: wchar_t Result: Self-destructed Performance ------------- Evolutions (2) 1000 Regions Visited (4) 800 Robots Destroyed (26) 130 Value Destroyed (389) 389 Prototype IDs (3) 60 Alien Tech Used (0) 0 Bonus (0) 0 TOTAL SCORE: 2379 Bonus ------- None Cogmind --------- Core Integrity 550/550 Matter 225/300 Energy 12/125 System Corruption 0% Temperature Cool (3) Movement Flying (29) Location -8/Materials Parts ------- > --- POWER (1) -------- Light Ion Engine > --- PROPULSION (4) --- VTOL Module VTOL Module VTOL Module VTOL Module > --- UTILITY (4) ------ Small Storage Unit Weight Redist. System Seismic Detector > --- WEAPON (2) ------- Medium Laser Advanced EMP Blaster > --- INVENTORY (8) ---- Light Ion Engine Aluminum Leg Wheel Flight Unit Flight Unit Cooling System Experimental Sensor Array Heavy Mace Peak State ------------ > --- POWER ------------ Light Ion Engine > --- PROPULSION ------- VTOL Module VTOL Module VTOL Module Improved VTOL Module > --- UTILITY ---------- Small Storage Unit Weight Redist. System Seismic Detector > --- WEAPON ----------- Medium Laser Advanced EMP Blaster > --- INVENTORY -------- Light Ion Engine Aluminum Leg Wheel Flight Unit Flight Unit Cooling System Experimental Sensor Array Heavy Mace [Rating: 21] Favorites ----------- Power Light Ion Engine Engine Light Ion Engine Propulsion Aluminum Leg Leg Aluminum Leg Flight Unit VTOL Module Utility Small Storage Unit Device Seismic Detector Storage Small Storage Unit Weapon Medium Laser Energy Gun Medium Laser Launcher Advanced EMP Blaster Build | -11 -10 -10 -9 -8 ------- Run | Scr Mat Min Mat Mat Slots Evolved 4 | . . . 2 2 Power . | . . . . . Propulsion 2 | . . . 1 1 Utility 2 | . . . 1 1 Weapon . | . . . . . Parts Attached 33 | 8 7 3 11 4 Power 4 | 1 2 . 1 . Engine 4 | 1 2 . 1 . Core . | . . . . . Reactor . | . . . . . Propulsion 14 | 2 4 . 6 2 Treads . | . . . . . Leg 4 | 2 2 . . . Wheel . | . . . . . Hover . | . . . . . Flight 10 | . 2 . 6 2 Utility 11 | 2 1 3 4 1 Device 10 | 1 1 3 4 1 Storage 1 | 1 . . . . Processor . | . . . . . Hackware . | . . . . . Protection . | . . . . . Artifact . | . . . . . Weapon 4 | 3 . . . 1 Energy Gun 3 | 3 . . . . Energy Cannon . | . . . . . Ballistic Gun . | . . . . . Ballistic Cannon . | . . . . . Launcher 1 | . . . . 1 Special Weapon . | . . . . . Impact Weapon . | . . . . . Slashing Weapon . | . . . . . Piercing Weapon . | . . . . . Special Melee Weapon . | . . . . . Unidentified Prototypes 3 | . . 1 . 2 Parts Lost 4 | . 1 . 3 . Power 2 | . 1 . 1 . Propulsion 1 | . . . 1 . Utility . | . . . . . Weapon 1 | . . . 1 . Highest Loss Streak 2 | . 1 . 2 . To Critical Strikes . | . . . . . Average Slot Usage (%) 95 | . 98 100 86 85 Engine 12 | . 13 14 8 9 Leg 20 | . 21 28 9 . Flight 6 | . 6 . 13 30 Device 16 | . 14 14 22 19 Storage 13 | . 14 14 11 9 Energy Gun 25 | . 28 28 21 9 Naked Turns . | . . . . . Heaviest Build 19 | 12 12 12 13 19 Greatest Support 26 | 20 26 26 20 22 Greatest Overweight (x) 3 | . 3 . 3 1 Average Overweight (x) . | . . . . . Largest Inventory Capacity 8 | 8 8 8 8 8 Average Capacity 7 | 7 8 8 8 8 Most Carried 8 | 3 7 8 8 8 Average Carried 5 | 2 4 6 7 7 Final Capacity 8 | 8 8 8 8 8 Final Carried 8 | 3 5 8 8 8 Class Distribution -------------------- 85% | Mutant 7% | Sprinter 4% | Scavenger-Mutant Dominant Class ---------------- Mutant | -10/Materials Mutant | -10/Mines Mutant | -9/Materials Sprinter | -8/Materials Resources | -11 -10 -10 -9 -8 ----------- Run | Scr Mat Min Mat Mat Matter Collected 445 | 211 134 10 90 . Remotely . | . . . . . Salvage Created 608 | 53 311 73 171 . Parts 46 | 7 23 6 10 . Haulers Intercepted 1 | . 1 . . . Recyclers Shooed 1 | . 1 . . . Parts Field Recycled . | . . . . . Retrieved Matter . | . . . . . Parts Self-Destructed . | . . . . . Prevented . | . . . . . Kills | -11 -10 -10 -9 -8 ------- Run | Scr Mat Min Mat Mat Combat Hostiles Destroyed 19 | . 8 5 6 . Guns 19 | . 8 5 6 . Classes Destroyed 8 | 2 5 . 1 . Worker 1 | 1 . . . . Tunneler 3 | 2 1 . . . Hauler 1 | . 1 . . . Recycler 1 | . 1 . . . Watcher 1 | . 1 . . . Swarmer 14 | . 6 5 3 . Grunt 4 | . 2 . 2 . Duelist 1 | . . . 1 . Best Kill Streak 6 | 3 5 2 6 . Combat Bots Only 6 | . 3 2 6 . Max Kills in Single Turn 2 | 1 2 1 2 . Gunslinging 1 | . . . 1 . Exploded . | . . . . . Melee . | . . . . . Uniques/NPCs Destroyed . | . . . . . Combat | -11 -10 -10 -9 -8 -------- Run | Scr Mat Min Mat Mat Damage Taken 651 | . 171 73 383 24 Core 148 | . 18 17 113 . Absorbed by Shields . | . . . . . Core Remaining (%) 85 | 100 . 86 71 . Volleys Fired 63 | 6 27 10 20 . Largest 2 | 2 2 2 2 . Hottest 90 | 90 90 90 90 . Shots Fired 123 | 12 54 20 37 . Gun 123 | 12 54 20 37 . Cannon . | . . . . . Launcher . | . . . . . Special . | . . . . . Kinetic . | . . . . . Thermal 123 | 12 54 20 37 . Explosive . | . . . . . Electromagnetic . | . . . . . Robot Hit Streak 28 | 3 28 7 13 . Robot Miss Streak 2 | 2 1 2 2 . Penetration Max . | . . . . . Secondary Targets 2 | . 1 . 1 . Max Gunslinging Chain 1 | . 1 . 1 . Shots Hit Robots 85 | 6 42 13 24 . Core Hits 34 | 3 16 5 10 . Critical Kills . | . . . . . Critical Parts Destroyed . | . . . . . Critical Strikes 4 | . 3 1 . . Burn 4 | . 3 1 . . Melee Attacks . | . . . . . Impact . | . . . . . Slashing . | . . . . . Piercing . | . . . . . Sneak Attacks . | . . . . . Combat Hostiles . | . . . . . Follow-up Attacks . | . . . . . Damage Inflicted 1063 | 74 509 160 320 . Guns 1021 | 74 509 153 285 . Cannons . | . . . . . Explosions 35 | . . . 35 . Melee . | . . . . . Ramming 7 | . . 7 . . Kinetic . | . . . . . Thermal 1021 | 74 509 153 285 . Explosive . | . . . . . Electromagnetic 35 | . . . 35 . Impact . | . . . . . Slashing . | . . . . . Piercing . | . . . . . Highest Corruption . | . . . . . Average Corruption . | . . . . . Corruption Purged . | . . . . . Corruption Blocked . | . . . . . Overload Shots . | . . . . . Overflow Damage . | . . . . . Projectiles . | . . . . . Explosions . | . . . . . Melee . | . . . . . Knockbacks . | . . . . . Impact . | . . . . . Kinetic . | . . . . . Secondary . | . . . . . Self-Inflicted Damage 9 | . . . 9 . Shots 1 | . . . 1 . Rammed . | . . . . . Targets Rammed 2 | . . 2 . . Kicked 2 | . . 2 . . Crushed . | . . . . . Highest Temperature 180 | 120 180 120 169 13 Average Temperature 59 | 48 66 43 62 13 Received Heat Transfer 264 | . 66 . 171 27 Siege Activations . | . . . . . Robots Corrupted . | . . . . . Combat Hostiles . | . . . . . Parts Fried . | . . . . . Impact Corruptions . | . . . . . Robots Melted . | . . . . . Combat Hostiles . | . . . . . Parts Melted 4 | . 1 . 3 . Heat Transferred 3010 | 198 1585 483 744 . Parts Sabotaged . | . . . . . Parts Stolen . | . . . . . Parts Stripped . | . . . . . Power Chain Reactions . | . . . . . Missiles Intercepted . | . . . . . Alert | -11 -10 -10 -9 -8 ------- Run | Scr Mat Min Mat Mat Peak Influence 269 | 15 212 224 269 141 Initial 96 | . 8 69 12 96 Average 116 | 5 119 134 137 119 Maximum Alert Level 1 | . 1 1 1 . Low Security (%) 75 | 100 72 66 75 100 Level 1 24 | . 27 33 24 . Level 2 . | . . . . . Level 3 . | . . . . . Level 4 . | . . . . . Level 5 . | . . . . . High Security . | . . . . . Max Security . | . . . . . Squads Dispatched 3 | . 1 . 2 . Investigation 1 | . 1 . . . Extermination . | . . . . . Reinforcement 2 | . . . 2 . Assault . | . . . . . Garrison . | . . . . . Intercept . | . . . . . Searches Triggered . | . . . . . Construction Impeded . | . . . . . Haulers Reinforced . | . . . . . Active Scanning Responses . | . . . . . Cargo Convoy Interrupts . | . . . . . Stealth | -11 -10 -10 -9 -8 --------- Run | Scr Mat Min Mat Mat Distress Signals 2 | . 1 . 1 . Communications Jammed . | . . . . . Distress Signals . | . . . . . Times Spotted 46 | . 10 16 18 2 Peak Tracking Total 10 | . 4 4 10 2 Tactical Retreats 4 | . . 2 2 . Traps | -11 -10 -10 -9 -8 ------- Run | Scr Mat Min Mat Mat Traps Triggered 1 | . 1 . . . Indirectly . | . . . . . Trap Hack Attempts . | . . . . . Triggered . | . . . . . Disarmed . | . . . . . Reprogrammed . | . . . . . Reused . | . . . . . Traps Extracted . | . . . . . Installed . | . . . . . Triggered . | . . . . . Machines | -11 -10 -10 -9 -8 ---------- Run | Scr Mat Min Mat Mat Machines Disabled 2 | . . . 2 . Max in Single Turn 2 | . . . 2 . Machines Sabotaged . | . . . . . Garrisons Compromised . | . . . . . Overloaded Fab Kills . | . . . . . Hacking | -11 -10 -10 -9 -8 --------- Run | Scr Mat Min Mat Mat Machines Accessed 5 | . . . 5 . Terminals 5 | . . . 5 . Fabricators . | . . . . . Repair Stations . | . . . . . Recycling Units . | . . . . . Scanalyzers . | . . . . . Garrison Access . | . . . . . Total Hacks 13 | . . . 13 . Successful 2 | . . . 2 . Failed 11 | . . . 11 . Catastrophic 4 | . . . 4 . Database Lockouts . | . . . . . Manual 13 | . . . 13 . Terminals 13 | . . . 13 . Fabricators . | . . . . . Repair Stations . | . . . . . Recycling Units . | . . . . . Scanalyzers . | . . . . . Garrison Access . | . . . . . Terminal Hacks 2 | . . . 2 . Level Access Points 1 | . . . 1 . Branch Access Points 1 | . . . 1 . Fabricator Hacks . | . . . . . Repair Station Hacks . | . . . . . Recycling Unit Hacks . | . . . . . Scanalyzer . | . . . . . Garrison Access Hacks . | . . . . . Unauthorized Hacks . | . . . . . Terminals . | . . . . . Fabricators . | . . . . . Repair Stations . | . . . . . Recycling Units . | . . . . . Scanalyzers . | . . . . . Garrison Access . | . . . . . Data Cores Recovered . | . . . . . Used . | . . . . . Hacking Detections 5 | . . . 5 . Full Trace Events . | . . . . . Feedback Events . | . . . . . Feedback Blocked . | . . . . . Robot Schematics Acquired . | . . . . . Robots Built . | . . . . . Authchips . | . . . . . Time . | . . . . . Total Robot Build Rating . | . . . . . Part Schematics Acquired . | . . . . . Parts Built . | . . . . . Authchips . | . . . . . Time . | . . . . . Total Part Build Rating . | . . . . . Parts Repaired . | . . . . . Time . | . . . . . Parts Recycled . | . . . . . Recycled Matter . | . . . . . Retrieved Matter . | . . . . . Retrieved Components . | . . . . . Parts Scanalyzed . | . . . . . Part Schematics Acquired . | . . . . . Parts Damaged . | . . . . . Bothacking | -11 -10 -10 -9 -8 ------------ Run | Scr Mat Min Mat Mat Used RIF Installer . | . . . . . Robots Hacked . | . . . . . Non-combat . | . . . . . Combat . | . . . . . Robot Hacks Applied . | . . . . . Relay Couplers Released . | . . . . . Fabnet Peak Effective % . | . . . . . Robots Rewired . | . . . . . Allies Hacked . | . . . . . Hacks Repelled . | . . . . . Allies | -11 -10 -10 -9 -8 -------- Run | Scr Mat Min Mat Mat Total Allies . | . . . . . Largest Group . | . . . . . Highest-Rated Group . | . . . . . Highest-Rated Ally . | . . . . . Total Orders . | . . . . . Ally Attacks . | . . . . . Total Damage . | . . . . . Kills . | . . . . . Allies Corrupted . | . . . . . Allies Melted . | . . . . . Intel | -11 -10 -10 -9 -8 ------- Run | Scr Mat Min Mat Mat Robot Analysis Total . | . . . . . Derelict Logs Recovered 1 | . . 1 . . Drone Launches . | . . . . . Drone Recoveries . | . . . . . Exploration | -11 -10 -10 -9 -8 ------------- Run | Scr Mat Min Mat Mat Turns Passed 1365 | 146 352 502 299 66 Spaces Moved 1064 | 96 206 375 280 107 Core 5 | 3 1 . 1 . Treads . | . . . . . Legs 670 | 93 150 375 52 . Wheels . | . . . . . Hover . | . . . . . Flight 389 | . 55 . 227 107 Fastest Speed 26 | 50 117 120 29 26 Average Speed 94 | 117 119 120 58 30 Slowest Speed 280 | 120 200 120 280 109 Overloaded Moves . | . . . . . Propulsion Burnouts . | . . . . . Robots Hopped 8 | . . . 7 1 Cave-ins Triggered . | . . . . . Exploration Rate (%) 32 | 6 37 69 37 15 Regions Visited 4 Branch Regions 1 Pre-discovered Areas 1 | . . 1 . . Known Exits Taken 1 | . . . 1 . Unknown Exits Taken 3 | 1 1 1 . . Scrap Searched 2 | . . 2 . . Spaces Dug . | . . . . . Terrain Destroyed . | . . . . . Melee . | . . . . . Projectile . | . . . . . AOE . | . . . . . Terrain Rammed . | . . . . . Walls Destroyed . | . . . . . Machines Disabled . | . . . . . Actions | -11 -10 -10 -9 -8 --------- Run | Scr Mat Min Mat Mat Total 1284 | 113 258 405 369 139 Wait 110 | . 12 13 61 24 Move 1044 | 95 205 374 265 105 Hop 8 | . . . 7 1 Pick Up 7 | 4 . 2 . 1 Fast Attach 22 | 6 4 1 7 4 Attach 4 | 1 2 . 1 . Detach 8 | . 5 1 1 1 Swap 7 | 1 1 2 3 . Drop 9 | . 2 . 4 3 Fire 63 | 6 27 10 20 . Melee . | . . . . . Ram . | . . . . . Kick 2 | . . 2 . . Crush . | . . . . . Escape Stasis . | . . . . . Rewire . | . . . . . Trap . | . . . . . Miscellaneous . | . . . . . Route ------- -11/Scrapyard -10/Materials (discovered 2 exits: *Mat / [*Min]) -10/Mines -9/Materials (discovered 6 exits: *Mat x3 / Min / Sto x2) -8/Materials (discovered 1 exit: [*Fac]) History --------- Turn | Location | Event 6 | -11/Scrapyard | Discovered new exit (range 15) 147 | -11/Scrapyard | Entered Materials 306 | -10/Materials | Build established: Mutant 424 | -10/Materials | Discovered new exit (range 15) 481 | -10/Materials | Discovered new exit (range 16) 499 | -10/Materials | Entered Mines 558 | -10/Mines | Met a Derelict bent on vengeance 681 | -10/Mines | Learned location of Zion (-6) 723 | -10/Mines | Assembled infested the area 728 | -10/Mines | Assisted by a Guerilla fighting off Assembled 971 | -10/Mines | Found a damaged Exp. Sensor Array with a note attached 974 | -10/Mines | Found Prototype Device 974 | -10/Mines | Identified Exp. Sensor Array 985 | -10/Mines | Discovered new exit (range 14) 1001 | -10/Mines | Entered Materials 1001 | -9/Materials | Evolved 2 slots: Propulsion x1, Utility x1 1018 | -9/Materials | Identified exit to Materials 1226 | -9/Materials | Identified exit to Mines 1226 | -9/Materials | Identified exit to Storage 1300 | -9/Materials | Entered another Materials area 1300 | -8/Materials | Evolved 2 slots: Propulsion x1, Utility x1 1359 | -8/Materials | Discovered new exit (range 16) 1366 | -8/Materials | Self-destructed Last Messages --------------- 01286_ Sml. Laser destroyed. 01288_ K-01 Serf collects debris. PARAMETERS=PROPULSION+1,UTILITY+1 LOCATION=MATERIALS GOAL=ESCAPE 01302_ Acquired Prototype Launcher. 01302_ Identified Adv. EMP Blaster. 01304_ Dropped Flight Unit. 01305_ Acquired Hvy. Mace. 01307_ Acquired Cooling System. 01334_ Critical hit (Burn: +37). 01335_ K-01 Serf collects debris. 01338_ Acquired Prototype Flight Unit. 01338_ Identified Imp. VTOL Module. 01338_ Malfunction: Energy drain (-91). 01339_ K-01 Serf collects debris. 01340_ Dropped Faulty Imp. VTOL Module. 01351_ Acquired VTOL Module. 01359_ EXIT=FOUND 01366_ Connecting with Terminal... Map ----- +----------------------------------------------------+ | | | | | | | | | | | | | | | | | | | | | | | | | | | | | | | ?????????????????????????????????????????????????? | | ?????????????????????????????????????????????????? | | ???????????????????????##########????????????????? | | ???????????????????????# #????????????????? | | ???????????????????????# """ #????????????????? | | ???????????????????????# """ #????????????????? | | ???????????????????????# """ #####????????????? | | ???????????????????????# # #????????????? | | ???????????????????????#" """ # < #????????????? | | ???????????????????????#T """ # #????????????? | | ???????????????????????#"@""" + +????????????? | | ???????????????????????# # #????????????? | | ???????????????????????########## #????????????? | | ????????????????????????????????# #????????????? | | ????????????????????????????????# #????????????? | | ????????????????????????????????# #????????????? | | ????????????????????????????????# #????????????? | | ????????????????????????????????# #????????????? | | ????????????????????????????????# #????????????? | | ????????????????????????????????# #????????????? | | ????????????????????????????????# #????????????? | | ?????????????????????????#??????# #????????????? | | ?????????????????????????# ?????# #????????????? | | ?????????????????????????# ????# #????????????? | | ?????????????????????????# #### #????????????? | | ?????????????????????????# #????????????? | | ?????????????????????????# ############?? | | ?????????????????????????# | | ?????????????????????????## ##### | | ??????????????????????????#?????# ###########??? | | ????????????????????????????????# #????????????? | | ????????????????????????????????# #????????????? | | ????????????????????????????????# ^##########???? | | ????????????????????????????????# # ????? | | ????????????????????????????????# # ?????? | +----------------------------------------------------+ Best States ------------- Heat Dissipation 53 Energy Generation 10 Energy Capacity 125 Matter Stores 300 Matter Capacity 300 Sight Range 16 Robot Scan Range 20 Terrain Scan Density 10 Additional Mass Support 6 Resistance: KI 20 Resistance: TH 20 Resistance: EX 20 Resistance: EM 20 Resistance: I 20 Resistance: S 20 Resistance: P 20 Evasion (%) 64 Offensive Hacking 10 Item Schematics ----------------- None Robot Schematics ------------------ None Fabricated ------------ Nothing Alien Tech Used ----------------- None Achievements -------------- None Challenges ------------ None Game ------ Seed FusionSegregatorBattery Manual? 0 Play Time 00:20:01 Cumulative 10.7 hours Start 2022.09.15 @ 19:49:19 End 2022.09.15 @ 20:07:24 Sessions 1 Manual Loads 0 Difficulty Adventurer Special Mode None Game No. 6 Rogue 0 Adventurer 6 Explorer 0 Win Type - Total 0 Types 0/0/0/0/0/0/0/0/0 Lore% 14 Gallery% 13 Achievement% 16 Wizard Run 0 Options --------- ASCII 1 Keyboard 0 Movement Vi Keybinds 0 Fullscreen 1 Font 18/CogWide Map View 76x50 Tactical HUD 1 Map Filters NONE Filters NONE Steam 0 RUN: d4f8cdf9-6ad2-4815-afb6-37b29467ec9f